Cogmind - Beta 14 @@@ ROGUE MODE // 2024.12.23 @ 18:19:30 Player: blackdogzx Result: Destroyed by G-34 Mercenary with Small Laser Performance ------------- Evolutions (1) 500 Regions Visited (3) 600 Robots Destroyed (24) 120 Value Destroyed (498) 498 Prototype IDs (0) 0 Alien Tech Used (0) 0 Bonus (0) 0 TOTAL SCORE: 1718 Bonus ------- None Cogmind --------- Core Integrity 0/400 Matter 208/300 Energy 87/100 System Corruption 0% Temperature Cool (6) Movement Core (100) Ox1 Location -9/Materials Parts ------- > --- POWER (1) -------- (None) > --- PROPULSION (2) --- (None) > --- UTILITY (4) ------ Small Storage Unit > --- WEAPON (2) ------- (None) > --- INVENTORY (8) ---- VSS Leg Cooling System Small Storage Unit Small Battery (100) Weight Redist. System Visual Processing Unit Sensor Array Signal Interpreter Peak State ------------ > --- POWER ------------ Ion Engine > --- PROPULSION ------- Aluminum Leg VSS Leg > --- UTILITY ---------- Small Storage Unit Sensor Array Targeting Computer Propulsion Shielding > --- WEAPON ----------- Slug Cannon > --- INVENTORY -------- Aluminum Leg Aluminum Leg Aluminum Leg Small Storage Unit Small Battery Weight Redist. System Visual Processing Unit Sensor Array [Rating: 14] Favorites ----------- Power Ion Engine Engine Ion Engine Propulsion Aluminum Leg Leg Aluminum Leg Utility Small Storage Unit Device Sensor Array Storage Small Storage Unit Processor Targeting Computer Hackware Hacking Suite Protection Propulsion Shielding Weapon Assault Rifle Energy Gun EM Pulse Gun Ballistic Gun Assault Rifle Ballistic Cannon Slug Cannon Launcher Grenade Launcher Build | -11 -10 -10 -9 ------- Run | Yrd Mat Min Mat Slots Evolved 2 | . . . 2 Power . | . . . . Propulsion . | . . . . Utility 2 | . . . 2 Weapon . | . . . . Parts Attached 29 | 6 7 1 15 Power 4 | 1 2 . 1 Engine 4 | 1 2 . 1 Core . | . . . . Reactor . | . . . . Propulsion 12 | 2 3 . 7 Treads . | . . . . Leg 12 | 2 3 . 7 Wheel . | . . . . Hover . | . . . . Flight . | . . . . Utility 7 | 1 1 . 5 Device 1 | . . . 1 Storage 3 | 1 1 . 1 Processor 1 | . . . 1 Hackware 1 | . . . 1 Protection 1 | . . . 1 Artifact . | . . . . Weapon 6 | 2 1 1 2 Energy Gun 2 | 1 1 . . Energy Cannon . | . . . . Ballistic Gun 1 | 1 . . . Ballistic Cannon 1 | . . 1 . Launcher 2 | . . . 2 Special Weapon . | . . . . Impact Weapon . | . . . . Slashing Weapon . | . . . . Piercing Weapon . | . . . . Special Melee Weapon . | . . . . Unidentified Prototypes . | . . . . Parts Lost 14 | . . . 14 Power 2 | . . . 2 Propulsion 5 | . . . 5 Utility 3 | . . . 3 Weapon 4 | . . . 4 Highest Loss Streak 5 | . . . 5 To Critical Strikes . | . . . . Average Slot Usage (%) 79 | . 82 100 71 Engine 10 | . 14 14 6 Leg 24 | . 28 28 20 Device 2 | . . . 7 Storage 17 | . 19 28 13 Processor 1 | . . . 4 Protection 3 | . . . 7 Energy Gun 5 | . 5 14 3 Ballistic Gun 7 | . 14 8 . Ballistic Cannon 3 | . . 5 7 Peak Build Rating 14 | 5 7 10 14 Average Rating 7 | 3 5 8 10 On Entrance 5 | . 5 7 10 Naked Turns . | . . . . Heaviest Build 22 | 12 15 20 22 Greatest Support 24 | 20 20 20 24 Greatest Overweight (x) 2 | 1 . . 2 Average Overweight (x) . | . . . . Largest Inventory Capacity 8 | 8 8 8 8 Average Capacity 7 | 6 8 8 8 Most Carried 8 | . 8 8 8 Average Carried 5 | . 3 8 6 Final Capacity 8 | 8 8 8 8 Final Carried 8 | . 8 8 8 Class Distribution -------------------- 100% | Mutant Dominant Class ---------------- Mutant | -10/Materials Mutant | -10/Mines Mutant | -9/Materials Resources | -11 -10 -10 -9 ----------- Run | Yrd Mat Min Mat Matter Collected 644 | 218 266 . 160 Remotely . | . . . . Salvage Created 471 | . 274 . 197 Parts 44 | . 23 . 21 Haulers Intercepted . | . . . . Recyclers Shooed 1 | . . . 1 Parts Field Recycled . | . . . . Retrieved Matter . | . . . . Parts Self-Destructed . | . . . . Prevented . | . . . . Kills | -11 -10 -10 -9 ------- Run | Yrd Mat Min Mat Combat Hostiles Destroyed 21 | . 10 . 11 Guns 11 | . 10 . 1 Cannons 2 | . . . 2 AOE 8 | . . . 8 Classes Destroyed 6 | . 3 . 3 Recycler 1 | . . . 1 Mechanic 1 | . . . 1 Watcher 1 | . 1 . . Swarmer 13 | . 6 . 7 Grunt 7 | . 4 . 3 Sentry 1 | . . . 1 Best Kill Streak 9 | . 3 . 9 Combat Bots Only 7 | . 3 . 7 Max Kills in Single Turn 3 | . 1 . 3 Gunslinging . | . . . . Exploded 3 | . . . 3 Melee . | . . . . Uniques/NPCs Destroyed . | . . . . Combat | -11 -10 -10 -9 -------- Run | Yrd Mat Min Mat Hostile Shots Fired 261 | . 77 . 184 Missed 88 | . 18 . 70 Damage Taken 2089 | . 616 . 1473 Core 547 | . 147 . 400 Absorbed by Shields . | . . . . Redirected to Shielding 52 | . . . 52 Core Remaining (%) 70 | 100 . 41 . Volleys Fired 76 | . 52 . 24 Largest 2 | . 2 . 2 Hottest 88 | . 60 . 88 Shots Fired 84 | . 55 . 29 Gun 60 | . 55 . 5 Cannon 16 | . . . 16 Launcher 8 | . . . 8 Special . | . . . . Kinetic 68 | . 52 . 16 Thermal . | . . . . Explosive 8 | . . . 8 Electromagnetic 8 | . 3 . 5 Robot Hit Streak 10 | . 10 . 4 Robot Miss Streak 6 | . 6 . 2 Penetration Max . | . . . . Secondary Targets . | . . . . Shots Hit Robots 48 | . 33 . 15 Core Hits 39 | . 17 . 22 Critical Kills . | . . . . Critical Parts Destroyed 1 | . . . 1 Critical Strikes 1 | . . . 1 Destroy 1 | . . . 1 Melee Attacks . | . . . . Impact . | . . . . Slashing . | . . . . Piercing . | . . . . Sneak Attacks . | . . . . Combat Hostiles . | . . . . Follow-up Attacks . | . . . . Damage Inflicted 1534 | . 437 . 1097 Guns 465 | . 435 . 30 Cannons 172 | . . . 172 Explosions 880 | . . . 880 Melee . | . . . . Ramming 17 | . 2 . 15 Kinetic 607 | . 435 . 172 Thermal 47 | . . . 47 Explosive 833 | . . . 833 Electromagnetic 30 | . . . 30 Impact . | . . . . Slashing . | . . . . Piercing . | . . . . Highest Corruption . | . . . . Average Corruption . | . . . . Corruption Purged . | . . . . Corruption Blocked . | . . . . Overload Shots . | . . . . Overflow Damage 93 | . . . 93 Projectiles 4 | . . . 4 Explosions 89 | . . . 89 Melee . | . . . . Knockbacks 4 | . . . 4 Impact . | . . . . Kinetic 4 | . . . 4 Secondary . | . . . . Self-Inflicted Damage 71 | . . . 71 Shots 4 | . . . 4 Rammed 3 | . . . 3 Targets Rammed 9 | . 3 . 6 Kicked 6 | . 3 . 3 Crushed . | . . . . Highest Temperature 72 | . 2 . 72 Average Temperature 13 | . 2 . 17 Received Heat Transfer 723 | . 270 . 453 Siege Activations . | . . . . Robots Corrupted . | . . . . Combat Hostiles . | . . . . Parts Fried . | . . . . Impact Corruptions . | . . . . Robots Melted . | . . . . Combat Hostiles . | . . . . Parts Melted . | . . . . Heat Transferred 50 | . . . 50 Parts Sabotaged . | . . . . Parts Stolen . | . . . . Parts Stripped . | . . . . Power Chain Reactions 1 | . . . 1 Alert | -11 -10 -10 -9 ------- Run | Yrd Mat Min Mat Peak Influence 290 | . 247 32 290 Initial 32 | . . 32 12 Average 107 | . 101 32 138 Maximum Alert Level 1 | . 1 . 1 Low Security (%) 88 | 100 85 100 88 Level 1 11 | . 14 . 11 Level 2 . | . . . . Level 3 . | . . . . Level 4 . | . . . . Level 5 . | . . . . High Security . | . . . . Max Security . | . . . . Squads Dispatched 5 | . 3 . 2 Investigation 2 | . 2 . . Extermination . | . . . . Reinforcement 3 | . 1 . 2 Assault . | . . . . Garrison . | . . . . Intercept . | . . . . Searches Triggered . | . . . . Construction Impeded . | . . . . Haulers Reinforced . | . . . . Active Scanning Responses . | . . . . Cargo Convoy Interrupts . | . . . . Stealth | -11 -10 -10 -9 --------- Run | Yrd Mat Min Mat Distress Signals 1 | . . . 1 Communications Jammed . | . . . . Distress Signals . | . . . . Times Spotted 42 | . 18 . 24 Peak Tracking Total 10 | . 5 . 10 Tactical Retreats . | . . . . Traps | -11 -10 -10 -9 ------- Run | Yrd Mat Min Mat Traps Triggered 3 | . 1 . 2 Indirectly . | . . . . Trap Hack Attempts . | . . . . Triggered . | . . . . Disarmed . | . . . . Reprogrammed . | . . . . Reused . | . . . . Traps Extracted . | . . . . Installed . | . . . . Triggered . | . . . . Machines | -11 -10 -10 -9 ---------- Run | Yrd Mat Min Mat Machines Disabled 5 | . . . 5 Max in Single Turn 1 | . . . 1 Machines Repaired . | . . . . Machines Dismantled . | . . . . Machines Sabotaged . | . . . . Overloaded Fab Kills . | . . . . Hacking | -11 -10 -10 -9 --------- Run | Yrd Mat Min Mat Machines Accessed 1 | . 1 . . Terminals 1 | . 1 . . Fabricators . | . . . . Repair Stations . | . . . . Recycling Units . | . . . . Scanalyzers . | . . . . Garrison Access . | . . . . Total Hacks 4 | . 4 . . Successful 3 | . 3 . . Failed 1 | . 1 . . Catastrophic . | . . . . Database Lockouts . | . . . . Manual . | . . . . Terminals 4 | . 4 . . Fabricators . | . . . . Repair Stations . | . . . . Recycling Units . | . . . . Scanalyzers . | . . . . Garrison Access . | . . . . Terminal Hacks 3 | . 3 . . Record 3 | . 3 . . Fabricator Hacks . | . . . . Repair Station Hacks . | . . . . Recycling Unit Hacks . | . . . . Scanalyzer . | . . . . Garrison Access Hacks . | . . . . Unauthorized Hacks . | . . . . Terminals . | . . . . Fabricators . | . . . . Repair Stations . | . . . . Recycling Units . | . . . . Scanalyzers . | . . . . Garrison Access . | . . . . Data Cores Recovered . | . . . . Used . | . . . . Hacking Detections 1 | . 1 . . Full Trace Events 1 | . 1 . . Feedback Events . | . . . . Feedback Blocked . | . . . . Robot Schematics Acquired . | . . . . Robots Built . | . . . . Authchips . | . . . . Time . | . . . . Total Robot Build Rating . | . . . . Part Schematics Acquired . | . . . . Parts Built . | . . . . Authchips . | . . . . Time . | . . . . Total Part Build Rating . | . . . . Parts Repaired . | . . . . Time . | . . . . Parts Recycled . | . . . . Recycled Matter . | . . . . Retrieved Matter . | . . . . Retrieved Components . | . . . . Parts Scanalyzed . | . . . . Part Schematics Acquired . | . . . . Parts Damaged . | . . . . Bothacking | -11 -10 -10 -9 ------------ Run | Yrd Mat Min Mat Used RIF Installer . | . . . . Robots Hacked . | . . . . Non-combat . | . . . . Combat . | . . . . Robot Hacks Applied . | . . . . Relay Couplers Released . | . . . . Fabnet Peak Effective % . | . . . . Robots Rewired . | . . . . Allies Hacked . | . . . . Hacks Repelled . | . . . . Allies | -11 -10 -10 -9 -------- Run | Yrd Mat Min Mat Total Allies . | . . . . Largest Group . | . . . . Highest-Rated Group . | . . . . Highest-Rated Ally . | . . . . Total Orders . | . . . . Ally Attacks . | . . . . Total Damage . | . . . . Kills . | . . . . Allies Corrupted . | . . . . Allies Melted . | . . . . Intel | -11 -10 -10 -9 ------- Run | Yrd Mat Min Mat Robot Analysis Total . | . . . . Derelict Logs Recovered . | . . . . Drone Launches . | . . . . Drone Recoveries . | . . . . Exploration | -11 -10 -10 -9 ------------- Run | Yrd Mat Min Mat Turns Passed 1320 | 57 660 77 526 Spaces Moved 823 | 40 390 63 330 Core 42 | 5 . . 37 Treads . | . . . . Legs 781 | 35 390 63 293 Wheels . | . . . . Hover . | . . . . Flight . | . . . . Fastest Speed 50 | 50 120 120 90 Average Speed 122 | 120 120 120 126 Slowest Speed 190 | 190 120 120 190 Overloaded Moves . | . . . . Propulsion Burnouts . | . . . . Robots Hopped . | . . . . Cave-ins Triggered . | . . . . Exploration Rate (%) 28 | 3 59 21 30 Regions Visited 3 Branch Regions 1 Pre-discovered Areas . | . . . . Known Exits Taken . | . . . . Unknown Exits Taken 3 | 1 1 1 . Scrap Searched . | . . . . Spaces Dug . | . . . . Terrain Destroyed 37 | . . . 37 Melee . | . . . . Projectile 5 | . . . 5 AOE 32 | . . . 32 Terrain Rammed . | . . . . Walls Destroyed . | . . . . Machines Disabled . | . . . . Actions | -11 -10 -10 -9 --------- Run | Yrd Mat Min Mat Total 1043 | 47 525 64 407 Wait 84 | . 63 . 21 Move 820 | 39 389 62 330 Hop . | . . . . Pick Up 14 | . 7 . 7 Fast Attach 14 | 6 2 1 5 Attach 6 | . . . 6 Detach 1 | 1 . . . Swap 9 | . 5 . 4 Drop 10 | 1 4 1 4 Fire 76 | . 52 . 24 Melee . | . . . . Ram 3 | . . . 3 Kick 6 | . 3 . 3 Crush . | . . . . Escape Stasis . | . . . . Rewire . | . . . . Trap . | . . . . Miscellaneous . | . . . . Route ------- -11/Scrapyard -10/Materials (discovered 2 exits: [*Mat] / [*Min]) -10/Mines -9/Materials History --------- Turn | Location | Event 18 | -11/Scrapyard | Discovered new exit (range 16) 58 | -11/Scrapyard | Entered Materials 300 | -10/Materials | Build established: Mutant 361 | -10/Materials | Core integrity fell below 50% 503 | -10/Materials | Discovered new exit (range 15) 556 | -10/Materials | Discovered new exit (range 11) 718 | -10/Materials | Entered Mines 763 | -10/Mines | A weapon hastily lodged in a ceiling crevice suddenly fell to the ground 784 | -10/Mines | Discovered new exit (range 9) 795 | -10/Mines | Entered Materials 795 | -9/Materials | Evolved 2 slots: Utility x2 998 | -9/Materials | Lost 3 parts (1p1n1w) 1189 | -9/Materials | Lost 5 parts (1p3u1w) 1199 | -9/Materials | Core integrity fell below 50% 1233 | -9/Materials | Lost 3 parts (2n1w) 1236 | -9/Materials | Destroyed 7 combat bots 1243 | -9/Materials | Core integrity fell below 20% 1321 | -9/Materials | Destroyed by G-34 Mercenary with Small Laser Last Messages --------------- 01289_ Acquired Cooling System. 01292_ Critical hit (Burn: +37). 01297_ Slammed into A-02 Transporter. 01299_ Triggered Blade Trap. 01299_ Massive razor-sharp blades shoot up from within the floor. 01299_ Hacking Suite severed. 01299_ VSS Leg severed. 01304_ Triggered Blade Trap. 01304_ Massive razor-sharp blades shoot up from within the floor. 01304_ VSS Leg severed. 01304_ U-05 Engineer lays Concrete. 01306_ Acquired VSS Leg. 01306_ VSS Leg destroyed. 01307_ U-05 Engineer lays Concrete. 01308_ Acquired VSS Leg. 01317_ VSS Leg destroyed. 01319_ Slammed into G-34 Mercenary. 01321_ W-16 Scout sends out distress signal. Map ----- +----------------------------------------------------+ | ?????????????????????????????????????????????????? | | ?????????????????????????????????????????????????? | | ?????????????????????????????????????????????????? | | ?????????????????????????????????????????????????? | | ?????????????????????????????????????????????????? | | ?????????????????????????????????????????????????? | | ?????????????????????????????????????????????????? | | ?????????????????????????????????????????????????? | | ?????????????????????????????????????????????????? | | ?????????????????????????????????????????????????? | | ?????????????????????????????????????????????????? | | ?????????????????????????????????????????????????? | | ?????????????????????????????????????????????????? | | ?????????????????????????????????????????????????? | | ?????????????????????????????????????????????????? | | ?????????????????????????????????????????????????? | | ?????????????????????????????????????????????????? | | ?????????????????????????????????????????????????? | | ?????????????????????????????????????????????????? | | ?????????????????????????????????????????????????? | | ?????????????????????????????????????????????????? | | ?????????????????????????????????????????????????? | | ??????????? r ##########+###############?????????? | | ??????????# wa u ????????? | | ??????????# a u g k ????????? | | ??????????# g@ k ????????? | | ?????????????????+######/####### #?????????????? | | ???????????????????????# #??????????????????? | | ???????????????????????# #??????????????????? | | ???????????????????????# #??????????????????? | | ???????????????????????# #??????????????????? | | ???????????????????????# #??????????????????? | | ???????????????????????# #??????????????????? | | ???????????????????????# #??????????????????? | | ??????????????###########/#####??????????????????? | | ##########????# # #????????#?????????????? | | #????# """ # ###### ####??????????? | | #????# "Y" # ???????? | | #????# """ / ???????? | | #???## """ # ^ ???????? | | ####+###+##### """ ### ##### ##????????? | | ???#/ ### #?? #?????? #?????????? | | ???# ! #?# #?? #?????????=#?????????? | | ####=%* #?####+######?? #????????????????????? | | # !%= #????# #??????? #????????????????????? | | # [ #????# #??????? #????????????????????? | | # #????# #????????#????????????????????? | | # #????# #??????# #????????????????????? | | # #???## ##### #????????????????????? | | #+## % ###### #????????????????????? | +----------------------------------------------------+ Best States ------------- Heat Dissipation 28 Energy Generation 10 Energy Capacity 350 Matter Stores 300 Matter Capacity 300 Sight Range 16 Robot Scan Range 14 Terrain Scan Density 10 Propulsion Shielding 33 Evasion (%) 57 Targeting Accuracy 5 Offensive Hacking 10 Item Schematics ----------------- None Robot Schematics ------------------ None Fabricated ------------ Nothing Alien Tech Used ----------------- None Achievements -------------- None Challenges ------------ None Game ------ Seed ScanFieldScrapsphere Manual? 0 Play Time 00:13:50 Cumulative 26.7 hours Start 2024.12.23 @ 18:04:55 End 2024.12.23 @ 18:19:30 Sessions 1 Manual Loads 0 Difficulty Rogue Special Mode None Game No. 46 Rogue 43 Adventurer 3 Explorer 0 Win Type - Total 0 Types 0/0/0/0/0/0/0/0/0 Lore% 9 Gallery% 20 Achievement% 17 Wizard Run 0 Options --------- Layout 1 ASCII 0 Keyboard 1 Movement Numpad Keybinds 0 Fullscreen 1 Font 24/Smallcaps Map View 50x35 Zoom Use 0% Tactical HUD 1 Map Filters NONE Filters NONE Steam 1 RUN: f0672ff2-42f7-4d85-a37e-7d6201dfb84d